bitfinex/quotes_BTCUSD_20220120
["timestamp","ask_amount","ask_price","bid_price","bid_amount"]
[1642666953846,0.000791,41933.0,41932.0,0.530215]
[1642666954040,0.08319822,41933.0,41932.0,0.530215]
[1642666954241,0.000791,41933.0,41932.0,0.530215]
[1642666954442,0.000791,41933.0,41932.0,0.70905841]
[1642666954846,0.000791,41933.0,41932.0,1.42992767]
[1642666955045,0.10985752,41943.0,41935.0,0.119236]
[1642666955245,0.10985752,41943.0,41936.0,0.33575426]
[1642666955446,8.609e-05,41942.0,41936.0,0.33575426]
[1642666955691,8.609e-05,41942.0,41940.0,0.55225979]
[1642666955997,6.89e-05,41941.0,41940.0,0.55225979]
[1642666956596,6.89e-05,41941.0,41940.0,0.33856281]
[1642666956793,6.89e-05,41941.0,41939.0,0.05962]
[1642666957195,0.0824826,41941.0,41932.0,0.530215]
[1642666957394,0.38976403,41940.0,41932.0,0.530215]
[1642666957596,0.0824137,41940.0,41933.0,6.862e-05]
[1642666957795,0.35032771,41939.0,41933.0,6.862e-05]
[1642666958094,0.40032771,41939.0,41935.0,0.059636]
[1642666958298,0.0824137,41938.0,41935.0,0.059636]
[1642666958497,0.20538229,41937.0,41935.0,0.059636]
[1642666958697,0.32214403,41936.0,41933.0,6.862e-05]
[1642666958903,0.0824137,41936.0,41933.0,6.862e-05]
[1642666959097,0.1324137,41936.0,41933.0,6.862e-05]
[1642666959339,0.05,41936.0,41935.0,0.0013389]
[1642666959641,0.0824137,41937.0,41935.0,0.0013389]
[1642666959642,0.1324137,41937.0,41935.0,0.0013389]
[1642666959841,0.0824137,41936.0,41935.0,0.0013389]
[1642666960041,0.52177327,41936.0,41935.0,0.0013389]
[1642666961040,0.52177327,41936.0,41935.0,0.00223457]
[1642666962143,0.0824137,41936.0,41935.0,0.00223457]
[1642666964591,0.39717681,41936.0,41935.0,0.00223457]
[1642666964989,0.0824137,41936.0,41935.0,0.00223457]
[1642666967439,0.39661893,41937.0,41935.0,0.00223457]
[1642666967640,0.0824137,41936.0,41935.0,0.00223457]
[1642666967839,0.4324137,41936.0,41935.0,0.00223457]
[1642666968139,0.36210523,41937.0,41935.0,0.00223457]
[1642666968341,0.42174123,41937.0,41935.0,0.00223457]
[1642666968540,0.107536,41937.0,41935.0,0.00223457]
[1642666969144,0.0479,41937.0,41935.0,0.00223457]
[1642666970992,0.04783385,41937.0,41935.0,0.00223457]
[1642666971399,0.059638,41936.0,41935.0,0.00223457]
[1642666971591,0.107538,41936.0,41935.0,0.00223457]
[1642666973295,0.57368688,41936.0,41935.0,0.00223457]
[1642666973497,0.57368688,41936.0,41933.0,6.862e-05]
[1642666973498,1.17936937,41936.0,41933.0,6.862e-05]
[1642666973694,1.0992,41934.0,41933.0,6.862e-05]
[1642666973894,0.6471,41934.0,41933.0,6.862e-05]
[1642666974095,1.33219766,41933.0,41932.0,0.52923104]
[1642666974368,2.08915518,41933.0,41932.0,0.52923104]
[1642666974561,2.18915518,41933.0,41932.0,0.52923104]
[1642666974860,0.75966,41932.0,41930.0,0.0011153]
[1642666975062,1.08238467,41931.0,41930.0,0.0011153]
[1642666975262,0.88964737,41931.0,41930.0,0.0011153]
[1642666975464,0.56627242,41931.0,41930.0,0.0011153]
[1642666975662,0.88824885,41931.0,41925.0,0.00015991]
[1642666975863,0.77839133,41931.0,41928.0,0.0011141]
[1642666976560,1.09161659,41931.0,41928.0,0.0011141]
[1642666976762,1.09161659,41931.0,41926.0,0.00012033]
[1642666976968,0.10985752,41930.0,41927.0,0.00111411]
[1642666977164,0.167205,41929.0,41927.0,0.00111411]
[1642666977364,0.31529848,41928.0,41927.0,0.00111411]
[1642666977565,0.5,41927.0,41924.0,0.53156902]
[1642666977765,0.36529848,41928.0,41927.0,0.00010314]
[1642666977964,0.523056,41928.0,41927.0,0.00010314]
[1642666978187,0.41319848,41928.0,41927.0,0.00010314]
[1642666978591,0.47285048,41928.0,41927.0,0.00010314]
[1642666979190,0.41319848,41928.0,41927.0,0.00010314]
[1642666979595,0.0979,41928.0,41927.0,0.00010314]
[1642666979792,0.0479,41928.0,41927.0,0.00010314]
[1642666985242,0.10755,41928.0,41927.0,0.00010314]
[1642666985447,0.18453981,41928.0,41927.0,0.00010314]
[1642666985692,0.23453981,41928.0,41927.0,0.00010314]
[1642666985887,0.23453981,41928.0,41927.0,0.00067559]
[1642666986491,0.56620506,41928.0,41927.0,0.00067559]
[1642666987090,0.66620506,41928.0,41927.0,0.00067559]
[1642666990447,0.73453981,41928.0,41927.0,0.00067559]
[1642666991044,0.73580298,41928.0,41927.0,0.00067559]
[1642666991445,0.83580298,41928.0,41927.0,0.00067559]
[1642666992046,0.43580298,41928.0,41927.0,0.00067559]
[1642666992244,0.43453981,41928.0,41927.0,0.00067559]
[1642666992450,0.76250916,41928.0,41927.0,0.00067559]
[1642666993092,0.66250916,41928.0,41927.0,0.00067559]
[1642666993293,0.66377312,41928.0,41927.0,0.00067559]
[1642666994098,0.33580377,41928.0,41927.0,0.00067559]
[1642666994496,0.68580377,41928.0,41927.0,0.00067559]
[1642666994695,0.78580377,41928.0,41927.0,0.00067559]
[1642666994896,0.33580377,41928.0,41927.0,0.00067559]
[1642666995898,0.23580377,41928.0,41927.0,0.00067559]
[1642666996097,0.33580377,41928.0,41927.0,0.00067559]
[1642666996300,0.43580377,41928.0,41927.0,0.00067559]
[1642666996500,0.43453981,41928.0,41927.0,0.00067559]
[1642666997145,0.33453981,41928.0,41927.0,0.00067559]
[1642666998846,0.23453981,41928.0,41927.0,0.00067559]
[1642666999048,0.65312664,41928.0,41927.0,0.00067559]
[1642666999249,0.6543862,41928.0,41927.0,0.00067559]
[1642666999847,1.1543862,41928.0,41927.0,0.00061301]
[1642667000049,0.6543862,41928.0,41927.0,0.00061301]
[1642667000589,0.65312664,41928.0,41927.0,0.00061301]
[1642667000993,0.65312664,41928.0,41927.0,0.0004345]
[1642667008794,0.64812664,41928.0,41927.0,0.0004345]
[1642667012545,0.85,41927.0,41921.0,0.0221]
[1642667012752,0.0479,41926.0,41921.0,0.0221]
[1642667013048,0.0479,41926.0,41916.0,0.0043]
[1642667013049,0.00120161,41919.0,41916.0,0.0043]
[1642667013248,1.2471,41918.0,41916.0,0.0043]
[1642667013444,2.15606769,41918.0,41916.0,0.0043]
[1642667013643,0.85,41917.0,41914.0,0.00555559]
[1642667013843,0.0479,41916.0,41914.0,0.00555559]
[1642667014042,0.17488981,41916.0,41915.0,0.00020628]
[1642667014242,0.91957633,41916.0,41915.0,0.00020628]
[1642667014441,0.85,41915.0,41914.0,0.0011]
[1642667014645,0.8979,41915.0,41914.0,0.0011]
[1642667014843,0.97488981,41915.0,41914.0,0.0011]
[1642667015049,0.97488981,41915.0,41900.0,0.6688]
[1642667015050,0.05968478,41912.0,41900.0,0.1022]
[1642667015248,0.0012212,41902.0,41900.0,0.1022]
[1642667015446,0.0012212,41902.0,41901.0,0.00024066]
[1642667015447,0.1033512,41902.0,41901.0,0.00024066]
[1642667015724,0.13094,41902.0,41901.0,0.85024066]
[1642667015924,0.02493025,41902.0,41901.0,0.85024066]
[1642667016115,0.02493025,41902.0,41901.0,1.23535566]
[1642667016315,0.80002,41915.0,41902.0,0.85]
[1642667016516,0.0479,41914.0,41904.0,0.33705629]
[1642667016716,0.35115301,41912.0,41904.0,0.33705629]
[1642667016918,0.0479,41911.0,41905.0,0.0598359]
[1642667017118,0.12438438,41911.0,41905.0,0.0598359]
[1642667017415,0.12566351,41911.0,41906.0,0.00015471]
[1642667017616,0.04917913,41911.0,41906.0,0.00015471]
[1642667017815,0.04917913,41911.0,41906.0,0.00126859]
[1642667017816,0.09917913,41911.0,41906.0,0.00126859]
[1642667018018,0.63300437,41910.0,41906.0,0.00126859]
[1642667018216,0.36477229,41909.0,41907.0,0.00013752]
[1642667018420,0.70975527,41908.0,41907.0,0.00013752]
[1642667018715,0.83411639,41908.0,41907.0,0.00013752]
[1642667018916,0.43411639,41908.0,41907.0,0.00013752]
[1642667019115,0.43411639,41908.0,41906.0,0.00015471]
[1642667019648,0.0479,41908.0,41906.0,0.00015471]
[1642667020352,0.259948,41913.0,41906.0,0.00015471]
[1642667020551,0.259948,41913.0,41907.0,0.31057101]
[1642667020749,0.20028,41913.0,41907.0,0.36057101]
[1642667020958,0.00125331,41919.0,41909.0,0.85]
[1642667021151,0.24009899,41920.0,41909.0,0.85]
[1642667021349,0.24009899,41920.0,41910.0,0.05008595]
[1642667021549,6.876e-05,41919.0,41912.0,0.23020918]
[1642667021750,6.876e-05,41919.0,41913.0,0.17896]
[1642667021951,8.595e-05,41920.0,41914.0,0.29344299]
[1642667022156,0.3300016,41920.0,41915.0,0.059654]
[1642667022352,6.876e-05,41919.0,41915.0,0.059654]
[1642667022552,6.876e-05,41919.0,41915.0,0.06076703]
[1642667023199,0.22773277,41919.0,41915.0,0.12041903]
[1642667023399,0.22709721,41919.0,41915.0,0.12041903]
[1642667023601,0.32991565,41920.0,41915.0,0.119306]
[1642667023798,0.059657,41921.0,41915.0,0.12041903]
[1642667024399,0.31285211,41925.0,41915.0,0.40567633]
[1642667024597,0.00120642,41925.0,41915.0,0.40567633]
[1642667024799,0.07647783,41924.0,41916.0,0.25478907]
[1642667025098,0.07646064,41923.0,41919.0,0.119298]
[1642667025299,0.07646064,41923.0,41919.0,0.1205298]
[1642667025502,0.07646064,41923.0,41919.0,0.1705298]
[1642667025697,6.876e-05,41923.0,41919.0,0.1705298]
[1642667026305,6.876e-05,41923.0,41919.0,0.17164264]
[1642667026499,0.12639938,41928.0,41923.0,0.059641]
[1642667026701,0.07639938,41928.0,41923.0,0.41234726]
[1642667026947,0.07646814,41927.0,41923.0,0.41234726]
[1642667027152,0.07646814,41927.0,41923.0,0.17054217]
[1642667027349,0.07648533,41928.0,41923.0,0.17165496]
[1642667027547,0.19008384,41926.0,41923.0,0.17165496]
[1642667027748,0.19008384,41926.0,41923.0,0.17039579]
[1642667027947,0.07639938,41925.0,41923.0,0.17039579]
[1642667028348,0.07639938,41925.0,41923.0,0.169283]
[1642667028549,8.595e-05,41928.0,41923.0,0.169283]
[1642667028955,0.07668505,41928.0,41923.0,0.169283]
[1642667029349,0.19663283,41927.0,41923.0,0.169283]
[1642667029751,0.19663283,41927.0,41923.0,0.1703958]
[1642667030353,8.595e-05,41928.0,41926.0,0.00124232]
[1642667030805,8.595e-05,41928.0,41926.0,0.05124232]
[1642667033903,8.595e-05,41928.0,41926.0,0.00124232]
[1642667034362,0.07667995,41928.0,41926.0,0.00124232]
[1642667034555,8.595e-05,41928.0,41927.0,0.8619]
[1642667034756,8.595e-05,41928.0,41927.0,1.24829525]
[1642667034952,0.12300542,41929.0,41927.0,1.39829525]
[1642667035154,0.12300542,41929.0,41928.0,1.235115]
[1642667035356,0.12300542,41929.0,41928.0,2.48065064]
[1642667035557,0.32851528,41940.0,41930.0,0.119244]
[1642667035754,0.14358407,41943.0,41932.0,0.119247]
[1642667035755,0.32851528,41943.0,41932.0,0.119247]
[1642667035955,0.07659065,41939.0,41932.0,0.119247]
[1642667036255,0.07676255,41938.0,41937.0,0.00127814]
[1642667036455,0.07676255,41938.0,41937.0,0.20606873]
[1642667036654,0.0001719,41938.0,41937.0,0.00127814]
[1642667037454,0.0001719,41938.0,41937.0,0.12052814]
[1642667037756,0.0001719,41938.0,41937.0,0.17052814]
[1642667040202,0.0001719,41938.0,41937.0,0.12052814]
[1642667040405,0.0001719,41938.0,41937.0,0.42359793]
[1642667040603,0.0001719,41938.0,41937.0,0.12052814]
[1642667040902,0.0001719,41938.0,41937.0,0.62103408]
[1642667041103,0.0001719,41938.0,41937.0,0.12103408]
[1642667041504,0.0001719,41938.0,41937.0,0.17103408]
[1642667042850,9.997e-05,41938.0,41937.0,0.62103408]
[1642667043054,9.997e-05,41938.0,41937.0,0.17103408]
[1642667045253,9.997e-05,41938.0,41937.0,0.47261461]
[1642667045457,0.00118327,41940.0,41938.0,0.42584302]
[1642667045699,0.00118327,41940.0,41939.0,0.0012918]
[1642667046202,0.00118327,41940.0,41939.0,0.94438964]
[1642667046398,8.595e-05,41943.0,41939.0,1.32950464]
[1642667046599,0.02,41949.0,41948.0,0.28932779]
[1642667046798,0.02,41949.0,41948.0,0.52103402]
[1642667046997,0.02,41949.0,41948.0,0.57103402]
[1642667048697,0.00118342,41951.0,41948.0,0.57103402]
[1642667048897,0.02,41959.0,41950.0,0.059604]
[1642667049098,0.00118342,41951.0,41950.0,0.059604]
[1642667049649,0.00132094,41951.0,41949.0,0.119207]
[1642667050051,0.00012033,41950.0,41949.0,0.119207]
[1642667050253,0.00012033,41950.0,41949.0,0.44895248]
[1642667050454,0.00012033,41950.0,41949.0,0.119207]
[1642667050853,0.01897472,41959.0,41949.0,0.719207]
[1642667051051,0.01897472,41959.0,41949.0,0.119207]
[1642667051254,0.01897472,41959.0,41952.0,0.059601]
[1642667051255,0.4325028,41957.0,41952.0,0.059601]
[1642667051453,0.059605,41957.0,41952.0,0.109601]
[1642667051653,0.00010314,41956.0,41952.0,0.109601]
[1642667051852,0.00010314,41956.0,41953.0,0.059605]
[1642667052055,8.595e-05,41955.0,41953.0,0.109605]
[1642667052460,6.876e-05,41954.0,41953.0,0.109605]
[1642667053699,0.05968176,41954.0,41952.0,0.05]
[1642667054098,0.05968176,41954.0,41949.0,0.169207]
[1642667054301,0.37538345,41952.0,41949.0,0.169207]
[1642667054500,0.37538345,41952.0,41949.0,0.05]
[1642667054701,0.37538345,41952.0,41946.0,0.119222]
[1642667054901,0.107518,41951.0,41946.0,0.119222]
[1642667055900,0.107518,41951.0,41947.0,0.109614]
[1642667056504,0.0479,41951.0,41949.0,0.30053714]
[1642667056951,0.06027573,41954.0,41949.0,0.35053714]
[1642667057152,6.876e-05,41954.0,41951.0,0.059602]
[1642667057352,0.00124049,41954.0,41951.0,0.059602]
[1642667057754,0.00124049,41954.0,41952.0,0.059602]
[1642667057949,0.00124049,41954.0,41952.0,0.109602]
[1642667058354,6.876e-05,41954.0,41952.0,0.109602]
[1642667060804,6.876e-05,41954.0,41953.0,0.00049919]
[1642667065950,6.876e-05,41954.0,41952.0,0.11010119]
[1642667068397,6.876e-05,41954.0,41953.0,0.79386211]
[1642667068602,6.876e-05,41954.0,41953.0,0.88469211]
[1642667069296,6.876e-05,41954.0,41953.0,0.65074514]
[1642667069696,6.876e-05,41954.0,41953.0,0.29386211]
[1642667070902,6.876e-05,41954.0,41953.0,0.2943613]
[1642667072251,6.876e-05,41954.0,41953.0,0.00170089]
[1642667072457,6.876e-05,41954.0,41953.0,0.00049919]
[1642667074856,6.876e-05,41954.0,41953.0,0.00173268]
[1642667075704,6.876e-05,41954.0,41953.0,0.00166933]
[1642667080350,6.876e-05,41954.0,41953.0,0.28730518]
[1642667082951,6.876e-05,41954.0,41953.0,0.00166933]
[1642667083611,6.876e-05,41954.0,41953.0,0.00049919]
[1642667084208,0.363596,41963.0,41955.0,0.28278444]
[1642667084608,6.876e-05,41958.0,41955.0,0.33278444]
[1642667085809,6.876e-05,41958.0,41957.0,0.0004975]
[1642667089154,0.06888305,41958.0,41957.0,0.0004975]
[1642667089554,0.06888305,41962.0,41957.0,0.0004975]
[1642667089756,0.06888305,41958.0,41957.0,0.0004975]
[1642667090456,0.06888305,41959.0,41957.0,0.0004975]
[1642667090697,0.06888305,41958.0,41957.0,0.0004975]
[1642667090902,0.06888305,41958.0,41955.0,0.0600955]
[1642667091099,0.06888305,41959.0,41955.0,0.0600955]
[1642667091306,0.06888305,41957.0,41955.0,0.0600955]
[1642667091500,0.06188305,41957.0,41955.0,0.0600955]
[1642667091698,0.06076041,41960.0,41955.0,0.0600955]
[1642667092098,0.0596,41960.0,41955.0,0.0600955]
[1642667092297,0.0607604,41960.0,41955.0,0.0600955]
[1642667092698,0.0607604,41960.0,41955.0,0.1100955]
[1642667093299,0.0596,41960.0,41955.0,0.1100955]
[1642667093500,0.0607604,41960.0,41955.0,0.1100955]
[1642667093903,0.1086604,41960.0,41955.0,0.1100955]
[1642667094347,0.1075,41960.0,41955.0,0.1100955]
[1642667094752,0.1086604,41960.0,41955.0,0.1100955]
[1642667095551,0.1075,41960.0,41955.0,0.1100955]
[1642667095752,0.1086604,41960.0,41955.0,0.1100955]
[1642667095952,0.1086604,41960.0,41957.0,0.0004975]
[1642667096853,0.1075,41960.0,41957.0,0.0004975]
[1642667098504,0.1075,41960.0,41957.0,0.0600955]
[1642667099007,0.1075,41960.0,41957.0,0.0590615]
[1642667100206,0.0479,41960.0,41957.0,0.0590615]
[1642667101005,0.0479,41960.0,41959.0,0.00049666]
[1642667101408,0.00116042,41961.0,41959.0,0.00049666]
[1642667101612,6.877e-05,41962.0,41959.0,0.00049666]
[1642667101856,0.0012292,41962.0,41959.0,0.00049666]
[1642667102955,6.877e-05,41962.0,41959.0,0.00049666]
[1642667105903,6.877e-05,41962.0,41957.0,0.168679]
[1642667106711,0.06994741,41962.0,41957.0,0.168679]
[1642667107606,0.06877229,41962.0,41957.0,0.168679]
[1642667107805,0.06994741,41962.0,41957.0,0.168679]
[1642667108807,0.06877229,41962.0,41957.0,0.168679]
[1642667109007,0.06994741,41962.0,41957.0,0.168679]
[1642667109213,0.0479,41961.0,41957.0,0.110115]
[1642667109449,0.0479,41961.0,41957.0,0.050516]
[1642667109648,0.06870352,41960.0,41957.0,0.000516]
[1642667109850,0.0479,41959.0,41957.0,0.000516]
[1642667110049,0.659603,41958.0,41957.0,0.000516]
[1642667110250,0.12830652,41958.0,41957.0,0.000516]
[1642667111050,0.12830652,41958.0,41956.0,0.11971184]
[1642667111251,0.50510202,41958.0,41956.0,0.00051684]
[1642667111454,1.3439145,41957.0,41956.0,0.00051684]
[1642667111757,1.08582252,41957.0,41956.0,0.00051684]
[1642667111950,1.60918954,41957.0,41956.0,0.00051684]
[1642667112154,1.28239404,41957.0,41956.0,0.00051684]
[1642667112351,1.6620694,41957.0,41956.0,0.00051684]
[1642667114904,1.7620694,41957.0,41956.0,0.00051684]
[1642667115212,1.7620694,41957.0,41956.0,6.84e-06]
[1642667115409,0.00124771,41952.0,41951.0,0.00121295]
[1642667115610,0.00124771,41952.0,41937.0,0.00485343]
[1642667115611,0.85,41951.0,41937.0,0.00485343]
[1642667115806,0.00125406,41938.0,41937.0,0.00485343]
[1642667116009,0.54915406,41938.0,41931.0,1.139]
[1642667116210,0.8195646,41938.0,41937.0,0.00036099]
[1642667116406,0.3195646,41938.0,41937.0,0.00036099]
[1642667116608,0.3195646,41938.0,41936.0,0.00037818]
[1642667117177,0.21952849,41937.0,41936.0,0.00037818]
[1642667117371,0.26742849,41937.0,41936.0,0.00037818]
[1642667117574,0.57819106,41937.0,41936.0,0.00037818]
[1642667118672,0.77675145,41937.0,41936.0,0.00037818]
[1642667118872,0.00678402,41936.0,41934.0,0.00061995]
[1642667119072,0.00678402,41936.0,41935.0,0.00039537]
[1642667119073,0.85678402,41936.0,41935.0,0.00039537]
[1642667119272,1.28912981,41936.0,41935.0,0.00039537]
[1642667120070,1.28912981,41936.0,41933.0,0.00121316]
[1642667120271,0.43912981,41936.0,41934.0,0.00041256]
[1642667120471,0.74606826,41935.0,41934.0,0.00041256]
[1642667120710,0.79396826,41935.0,41934.0,0.00041256]
[1642667120908,0.36455813,41935.0,41934.0,0.00041256]
[1642667121109,0.42419993,41935.0,41934.0,0.00041256]
[1642667121308,0.42419993,41935.0,41932.0,0.00121318]
[1642667121509,0.42419993,41935.0,41933.0,0.00042975]
[1642667121710,0.67448368,41934.0,41933.0,0.00042975]
[1642667121909,0.4979,41934.0,41933.0,0.00042975]
[1642667122516,0.4979,41934.0,41931.0,0.00121319]
[1642667122710,0.059641,41933.0,41932.0,0.00044694]
[1642667123010,0.457541,41933.0,41932.0,0.00044694]
[1642667123609,0.457541,41933.0,41930.0,0.00169453]
[1642667123812,0.3657742,41931.0,41930.0,0.00121321]
[1642667124011,0.5329682,41931.0,41930.0,0.00121321]
[1642667124212,0.5329682,41931.0,41930.0,0.00169453]
[1642667124471,0.5829682,41931.0,41930.0,0.00048132]
[1642667124664,0.6786582,41931.0,41930.0,0.00048132]
[1642667124865,0.6786582,41931.0,41928.0,0.00121324]
[1642667125071,0.6786582,41931.0,41929.0,0.00049851]
[1642667125464,0.69240673,41930.0,41929.0,0.00049851]
[1642667125665,0.74030673,41930.0,41929.0,0.00049851]
[1642667126064,0.74030673,41930.0,41928.0,0.00121324]
[1642667126265,0.74030673,41930.0,41929.0,0.00049851]
[1642667127365,0.74030673,41930.0,41928.0,0.0005157]
[1642667128204,0.61288864,41930.0,41928.0,0.0005157]
[1642667128409,0.61288864,41930.0,41927.0,0.00121326]
[1642667128604,0.61288864,41930.0,41928.0,0.0005157]
[1642667130210,0.75,41929.0,41928.0,0.0005157]
[1642667130406,0.8,41928.0,41916.0,1.156506]
[1642667130606,0.107557,41927.0,41916.0,1.156506]
[1642667130810,0.47231243,41927.0,41921.0,0.00485376]
[1642667131004,0.62231243,41927.0,41921.0,0.00485376]
[1642667131205,0.62231243,41927.0,41922.0,0.00010314]
[1642667131407,0.33590399,41924.0,41922.0,0.00010314]
[1642667131607,0.60670973,41923.0,41922.0,0.00010314]
[1642667131857,0.60670973,41923.0,41922.0,0.00131647]
[1642667132056,0.60670973,41923.0,41922.0,0.00121333]
[1642667132257,0.60670973,41923.0,41922.0,0.00131647]
[1642667132657,0.107556,41923.0,41922.0,0.00131647]
[1642667132862,0.107556,41923.0,41922.0,0.00010314]
[1642667133259,0.107556,41923.0,41921.0,0.00012033]
[1642667133859,0.41448834,41923.0,41921.0,0.00012033]
[1642667134058,0.107556,41923.0,41921.0,0.00012033]
[1642667134459,0.107556,41923.0,41920.0,0.00135088]
[1642667134661,0.107556,41923.0,41921.0,0.00012033]
[1642667135467,0.0479,41923.0,41921.0,0.00012033]
[1642667135900,0.0479,41923.0,41921.0,0.05012033]
[1642667136402,0.0479,41923.0,41920.0,0.18015736]
[1642667136403,0.0479,41923.0,41922.0,0.00010314]
[1642667136801,0.0479,41923.0,41921.0,0.05012033]
[1642667137002,0.10754864,41923.0,41922.0,0.00010314]
[1642667137407,0.1636189,41923.0,41922.0,0.00010314]
[1642667137604,0.1636189,41923.0,41921.0,0.00012033]
[1642667139105,0.1636189,41923.0,41920.0,0.00121336]
[1642667139354,0.2829319,41923.0,41920.0,0.00121336]
[1642667139552,0.35489193,41922.0,41921.0,0.00012033]
[1642667139753,0.40279193,41922.0,41921.0,0.00012033]
[1642667140557,0.40279193,41922.0,41920.0,0.00013752]
[1642667140755,0.74448712,41921.0,41920.0,0.00013752]
[1642667140953,0.44238712,41921.0,41920.0,0.00013752]
[1642667141353,0.44950888,41921.0,41920.0,0.00013752]
[1642667141554,0.44950888,41921.0,41918.0,0.00138528]
[1642667141954,0.42433903,41920.0,41918.0,0.00138528]
[1642667142154,0.10756,41919.0,41918.0,0.00138528]
[1642667142353,0.16281129,41919.0,41918.0,0.00138528]
[1642667142553,0.16281129,41919.0,41918.0,0.0001719]
[1642667143609,0.10315129,41919.0,41918.0,0.0001719]
[1642667145309,0.33011227,41919.0,41918.0,0.0001719]
[1642667145908,0.10315129,41919.0,41918.0,0.0001719]
[1642667147169,0.588196,41919.0,41918.0,0.0001719]
[1642667147367,0.41158232,41919.0,41918.0,0.0001719]
[1642667148374,0.10315129,41919.0,41918.0,0.0001719]
[1642667150278,0.10315129,41919.0,41916.0,0.00121341]
[1642667150279,0.03390353,41917.0,41916.0,0.00121341]
[1642667150912,0.03390353,41917.0,41915.0,0.0011]
[1642667151108,0.05012353,41917.0,41915.0,0.0011]
[1642667151306,0.04737999,41916.0,41915.0,0.0011]
[1642667151504,0.0522018,41917.0,41915.0,0.0011]
[1642667153008,0.05862157,41917.0,41915.0,0.0011]
[1642667153208,0.01622,41917.0,41915.0,0.0011]
[1642667153607,0.1108995,41918.0,41915.0,0.0011]
[1642667153608,0.01622,41916.0,41915.0,0.0011]
[1642667168329,0.01567993,41916.0,41915.0,0.0011]
[1642667168534,0.01486904,41916.0,41915.0,0.0011]
[1642667169034,0.01486904,41920.0,41915.0,0.0011]
[1642667169239,0.345753,41923.0,41915.0,0.0011]
[1642667169240,0.2861,41923.0,41915.0,0.0011]
[1642667169459,0.1,41923.0,41915.0,0.0011]
[1642667169656,6.877e-05,41922.0,41916.0,0.05963958]
[1642667170256,6.877e-05,41922.0,41917.0,0.00121341]
[1642667171356,6.877e-05,41922.0,41915.0,0.0011]
[1642667171559,6.877e-05,41922.0,41917.0,0.0012134]
[1642667172557,6.877e-05,41922.0,41915.0,0.0011]
[1642667172756,6.877e-05,41922.0,41917.0,0.0012134]
[1642667173606,6.877e-05,41922.0,41915.0,0.0011]
[1642667173804,6.877e-05,41922.0,41917.0,0.0012134]
[1642667174206,6.877e-05,41922.0,41917.0,0.06085214]
[1642667174802,6.877e-05,41922.0,41915.0,0.0011]
[1642667175004,6.877e-05,41922.0,41917.0,0.0012134]
[1642667176004,6.877e-05,41922.0,41915.0,0.0011]
[1642667176204,6.877e-05,41922.0,41917.0,0.0012134]
[1642667177252,6.877e-05,41922.0,41915.0,0.0011]
[1642667177451,6.877e-05,41922.0,41917.0,0.0012134]
[1642667178453,6.877e-05,41922.0,41915.0,0.30309589]
[1642667178653,6.877e-05,41922.0,41917.0,0.0012134]
[1642667179659,6.877e-05,41922.0,41915.0,0.1511]
[1642667179856,6.877e-05,41922.0,41917.0,0.0012134]
[1642667180910,6.877e-05,41922.0,41915.0,0.0011]
[1642667181209,6.877e-05,41922.0,41917.0,0.0012134]
[1642667182008,6.877e-05,41922.0,41915.0,0.0011]
[1642667182212,6.877e-05,41922.0,41917.0,0.0012134]
[1642667183309,6.877e-05,41922.0,41915.0,0.0011]
[1642667183507,6.877e-05,41922.0,41917.0,0.0012134]
[1642667184555,6.877e-05,41922.0,41916.0,0.21657527]
[1642667184761,6.877e-05,41922.0,41917.0,0.0012134]
[1642667185657,6.877e-05,41922.0,41916.0,0.21657527]
[1642667185857,6.877e-05,41922.0,41917.0,0.0012134]
[1642667186057,6.877e-05,41922.0,41921.0,0.251]
[1642667186360,6.877e-05,41922.0,41917.0,0.0012134]
[1642667186958,6.877e-05,41922.0,41916.0,0.21657527]
[1642667187158,6.877e-05,41922.0,41917.0,0.0012134]
[1642667188403,6.877e-05,41922.0,41918.0,0.0119]
[1642667188602,6.877e-05,41922.0,41917.0,0.06085197]
[1642667189301,6.877e-05,41922.0,41917.0,0.05963857]
[1642667189502,6.877e-05,41922.0,41917.0,0.06085197]
[1642667190504,6.877e-05,41922.0,41917.0,0.05963857]
[1642667190706,6.877e-05,41922.0,41917.0,0.06085197]
[1642667191606,6.877e-05,41922.0,41916.0,0.05]
[1642667191852,6.877e-05,41922.0,41917.0,0.0012134]
[1642667192858,6.877e-05,41922.0,41915.0,0.0011]
[1642667193055,6.877e-05,41922.0,41917.0,0.0012134]
[1642667194058,6.877e-05,41922.0,41915.0,0.30245569]
[1642667194257,6.877e-05,41922.0,41917.0,0.0012134]
[1642667195258,6.877e-05,41922.0,41915.0,0.1011]
[1642667195460,6.877e-05,41922.0,41917.0,0.0012134]
[1642667195704,6.877e-05,41922.0,41918.0,0.385115]
[1642667196103,6.877e-05,41922.0,41918.0,0.485115]
[1642667196303,6.877e-05,41922.0,41918.0,0.1]
[1642667196704,6.877e-05,41922.0,41919.0,0.397015]
[1642667196905,6.877e-05,41922.0,41919.0,0.385115]
[1642667197303,6.877e-05,41922.0,41918.0,0.15121339]
[1642667197504,6.877e-05,41922.0,41918.0,0.00121339]
[1642667198804,6.877e-05,41922.0,41915.0,0.522579]
[1642667199006,6.877e-05,41922.0,41918.0,0.00121339]
[1642667199450,6.877e-05,41922.0,41918.0,0.06085294]
[1642667200050,6.877e-05,41922.0,41918.0,0.05963955]
[1642667200251,6.877e-05,41922.0,41918.0,0.06085294]
[1642667201252,6.877e-05,41922.0,41918.0,0.05963955]
[1642667201452,6.877e-05,41922.0,41919.0,0.385115]
[1642667201653,6.877e-05,41922.0,41918.0,0.06085294]
[1642667201854,6.877e-05,41922.0,41919.0,0.05]
[1642667202054,6.877e-05,41922.0,41918.0,0.06085294]
[1642667202455,6.877e-05,41922.0,41918.0,0.05963955]
[1642667202655,6.877e-05,41922.0,41918.0,0.06085294]
[1642667203699,6.877e-05,41922.0,41918.0,0.05963955]
[1642667203900,6.877e-05,41922.0,41918.0,0.06085294]
[1642667204799,6.877e-05,41922.0,41918.0,0.05963955]
[1642667205001,6.877e-05,41922.0,41918.0,0.06085294]
[1642667206099,6.877e-05,41922.0,41918.0,0.05963955]
[1642667206301,6.877e-05,41922.0,41918.0,0.06085294]
[1642667207351,6.877e-05,41922.0,41918.0,0.05963955]
[1642667207553,6.877e-05,41922.0,41918.0,0.06085294]
[1642667208555,6.877e-05,41922.0,41918.0,0.05963955]
[1642667208853,6.877e-05,41922.0,41918.0,0.06085294]
[1642667209053,6.877e-05,41922.0,41919.0,0.385115]
[1642667209253,6.877e-05,41922.0,41919.0,0.435115]
[1642667214002,6.877e-05,41922.0,41919.0,0.05]
[1642667214449,6.877e-05,41922.0,41917.0,0.05]
[1642667214657,6.877e-05,41922.0,41918.0,0.38632838]
[1642667214952,6.877e-05,41922.0,41918.0,0.43632838]
[1642667215755,6.877e-05,41922.0,41918.0,0.435115]
[1642667215960,6.877e-05,41922.0,41919.0,0.05964123]
[1642667219704,6.877e-05,41922.0,41920.0,0.385115]
[1642667220103,6.877e-05,41922.0,41920.0,0.045]
[1642667220504,6.877e-05,41922.0,41919.0,0.05964123]
[1642667220704,6.877e-05,41922.0,41919.0,0.06085461]
[1642667221707,6.877e-05,41922.0,41919.0,0.05964123]